fUSD/lending_fUSD_20240331
["ID","MTS","AMOUNT","RATE_DAILY","PERIOD"]
[321121221,1711900388794,-572.9248495,0.00059178,120]
[321121222,1711900388803,-500.0,0.00059178,120]
[321121223,1711900388812,-6583.66,0.00059178,120]
[321121224,1711900388821,-550.6,0.00059178,120]
[321121225,1711900388831,-4743.47,0.00059178,120]
[321121226,1711900388840,-649.91,0.00059178,120]
[321121227,1711900388849,-1501.81,0.00059178,120]
[321121228,1711900388859,-1008.94,0.00059178,120]
[321121229,1711900388871,-7272.15,0.00059178,120]
[321121230,1711900388879,-500.0,0.00059178,120]
[321121231,1711900388888,-500.0,0.00059178,120]
[321121232,1711900388897,-1951.74,0.00059178,120]
[321121233,1711900388906,-500.0,0.00059178,120]
[321121234,1711900388916,-1708.51,0.00059178,120]
[321121235,1711900388925,-2213.16,0.00059178,120]
[321121236,1711900388934,-516.3,0.00059178,120]
[321121237,1711900388944,-500.0,0.00059178,120]
[321121238,1711900388954,-706.06,0.00059178,120]
[321121239,1711900388964,-500.0,0.00059178,120]
[321121240,1711900388973,-500.0,0.00059178,120]
[321121241,1711900388983,-500.0,0.00059178,120]
[321121242,1711900388992,-4238.83,0.00059178,120]
[321121243,1711900389003,-1070.8,0.00059178,120]
[321121244,1711900389013,-1153.73,0.00059178,120]
[321121245,1711900389022,-506.91,0.00059178,120]
[321121246,1711900389031,-11263.13,0.00059178,120]
[321121247,1711900389040,-500.0,0.00059178,120]
[321121248,1711900389049,-6135.58,0.00059178,120]
[321121249,1711900389059,-1063.3,0.00059178,120]
[321121250,1711900389069,-574.48606587,0.00059178,120]
[321121251,1711900389079,-1083.6,0.00059178,120]
[321121252,1711900389088,-1674.93,0.00059178,120]
[321121253,1711900389097,-500.0,0.00059178,120]
[321121254,1711900389108,-547.37,0.00059178,120]
[321121255,1711900389117,-1968.84,0.00059178,120]
[321121256,1711900389127,-3729.06,0.00059178,120]
[321121257,1711900389136,-4646.47,0.00059178,120]
[321121258,1711900389145,-2179.05,0.00059178,120]
[321121259,1711900389155,-16968.39,0.00059178,120]
[321121260,1711900389164,-29017.57,0.00059178,120]
[321121261,1711900389174,-551.57,0.00059178,120]
[321121262,1711900389183,-584.14,0.00059178,120]
[321121263,1711900389192,-890.16,0.00059178,120]
[321121264,1711900389201,-3354.8,0.00059178,120]
[321121265,1711900389211,-911.19,0.00059178,120]
[321121266,1711900389220,-770.28,0.00059178,120]
[321121267,1711900389230,-553.6,0.00059178,120]
[321121268,1711900389239,-749.8,0.00059178,120]
[321121269,1711900389248,-1117.84,0.00059178,120]
[321121270,1711900389258,-1829.63,0.00059178,120]
[321121271,1711900389267,-500.0,0.00059178,120]
[321121272,1711900389276,-3744.87,0.00059178,120]
[321121273,1711900389285,-500.0,0.00059178,120]
[321121274,1711900389297,-542.88,0.00059178,120]
[321121275,1711900389306,-1553.34,0.00059178,120]
[321121276,1711900389317,-500.0,0.00059178,120]
[321121277,1711900389326,-1915.68,0.00059178,120]
[321121278,1711900389337,-243.78189242,0.00059178,120]
[321121279,1711900389346,-584.91,0.00059178,120]
[321121280,1711900389358,-882.75,0.00059178,120]
[321121281,1711900389367,-1875.4,0.00059178,120]
[321121282,1711900389377,-500.0,0.00059178,120]
[321121283,1711900389388,-733.42,0.00059178,120]
[321121284,1711900389397,-784.97,0.00059178,120]
[321121285,1711900389406,-2559.61,0.00059178,120]
[321121286,1711900389415,-500.0,0.00059178,120]
[321121287,1711900389425,-4029.59,0.00059178,120]
[321121288,1711900389434,-1741.29,0.00059178,120]
[321121289,1711900389444,-500.0,0.00059178,120]
[321121290,1711900389454,-8811.85,0.00059178,120]
[321121291,1711900389464,-612.97,0.00059178,120]
[321121292,1711900389472,-7506.96,0.00059178,21]
[321121293,1711900389482,-2797.36,0.00059178,120]
[321121294,1711900389491,-1677.22,0.00059178,120]
[321121295,1711900389500,-1296.66,0.00059178,120]
[321121296,1711900389509,-489.14,0.00059178,120]
[321121297,1711900389519,-966.37,0.00059178,120]
[321121298,1711900389528,-390.44,0.00059178,120]
[321121299,1711900389537,-12461.24,0.00059178,120]
[321121300,1711900389547,-3203.08,0.00059178,120]
[321121301,1711900389557,-1043.52,0.00059178,120]
[321121302,1711900389566,-4560.05,0.00059178,120]
[321121303,1711900389575,-1828.48,0.00059178,120]
[321121304,1711900389585,-1209.33,0.00059178,120]
[321121305,1711900389594,-1928.53,0.00059178,120]
[321121306,1711900389603,-868.97,0.00059178,120]
[321121307,1711900389612,-596.22,0.00059178,120]
[321121308,1711900389622,-500.0,0.00059178,120]
[321121309,1711900389632,-609.97,0.00059178,120]
[321121310,1711900389640,-8356.87,0.00059178,120]
[321121311,1711900389650,-213.78,0.00059178,120]
[321121312,1711900389659,-1782.7,0.00059178,120]
[321121313,1711900389668,-500.0,0.00059178,120]
[321121314,1711900389677,-525.13,0.00059178,120]
[321121315,1711900389687,-1415.86,0.00059178,120]
[321121316,1711900389697,-2311.2,0.00059178,120]
[321121317,1711900389706,-1616.02,0.00059178,120]
[321121318,1711900389715,-12648.79,0.00059178,120]
[321121319,1711900389724,-2232.12,0.00059178,120]
[321121320,1711900389733,-1508.33,0.00059178,120]
[321121321,1711900389742,-500.0,0.00059178,120]
[321121322,1711900389751,-613.37530145,0.00059178,120]
[321121323,1711900389760,-500.0,0.00059178,120]
[321121324,1711900389769,-682.15,0.00059178,120]
[321121325,1711900389778,-3149.36,0.00059178,120]
[321121326,1711900389791,-2930.26,0.00059178,120]
[321121327,1711900389800,-696.26,0.00059178,120]
[321121328,1711900389809,-500.0,0.00059178,120]
[321121329,1711900389818,-1065.68,0.00059178,120]
[321121330,1711900389827,-515.16,0.00059178,120]
[321121331,1711900389837,-1509.76,0.00059178,120]
[321121332,1711900389846,-500.0,0.00059178,120]
[321121333,1711900389856,-4982.8,0.00059178,120]
[321121334,1711900389865,-717.55,0.00059178,120]
[321121335,1711900389874,-2406.23,0.00059178,120]
[321121336,1711900389883,-5346.73,0.00059178,120]
[321121337,1711900389892,-688.17,0.00059178,120]
[321121338,1711900389901,-551.95,0.00059178,120]
[321121339,1711900389910,-3295.3,0.00059178,120]
[321121340,1711900389919,-716.5,0.00059178,120]
[321121341,1711900389928,-752.11,0.00059178,120]
[321121342,1711900389936,-500.0,0.00059178,120]
[321121343,1711900389946,-1648.61,0.00059178,120]
[321121344,1711900389955,-694.07,0.00059178,120]
[321121345,1711900389964,-883.93,0.00059178,120]
[321121346,1711900389973,-615.79,0.00059178,120]
[321121347,1711900389982,-500.0,0.00059178,120]
[321121348,1711900389990,-3973.68,0.00059178,120]
[321121349,1711900389999,-1150.28,0.00059178,120]
[321121350,1711900390008,-1225.53,0.00059178,120]
[321121351,1711900390017,-2159.97,0.00059178,120]
[321121352,1711900390026,-1646.9,0.00059178,120]
[321121353,1711900390036,-994.44,0.00059178,120]
[321121354,1711900390045,-1115.67,0.00059178,120]
[321121355,1711900390054,-4641.87,0.00059178,120]
[321121356,1711900390064,-8787.96,0.00059178,120]
[321121357,1711900390073,-572.49424021,0.00059178,120]
[321121358,1711900390082,-500.0,0.00059178,120]
[321121359,1711900390091,-1194.34,0.00059178,120]
[321121360,1711900390101,-500.0,0.00059178,120]
[321121361,1711900390110,-500.0,0.00059178,120]
[321121362,1711900390120,-752.64,0.00059178,120]
[321121363,1711900390129,-3930.82,0.00059178,120]
[321121364,1711900390138,-1715.44,0.00059178,120]
[321121365,1711900390147,-7337.25,0.00059178,120]
[321121366,1711900390156,-475.41127914,0.00059178,120]
[321121367,1711900390166,-1001.76,0.00059178,120]
[321121368,1711900390175,-1183.78,0.00059178,120]
[321121369,1711900390184,-787.48,0.00059178,120]
[321121370,1711900390193,-939.48,0.00059178,120]
[321121371,1711900390203,-596.63,0.00059178,120]
[321121372,1711900390212,-602.91,0.00059178,120]
[321121373,1711900390221,-500.0,0.00059178,120]
[321121374,1711900390230,-2310.25,0.00059178,120]
[321121375,1711900390239,-1425.94,0.00059178,120]
[321121376,1711900390248,-1026.37,0.00059178,120]
[321121377,1711900390257,-6224.16,0.00059178,120]
[321121378,1711900390267,-520.6,0.00059178,120]
[321121379,1711900390276,-1299.9,0.00059178,120]
[321121380,1711900390286,-1747.53,0.00059178,120]
[321121381,1711900390299,-6493.36,0.00059178,120]
[321121382,1711900390308,-500.0,0.00059178,120]
[321121383,1711900390318,-569.5,0.00059178,120]
[321121384,1711900390328,-500.0,0.00059178,120]
[321121385,1711900390338,-703.93,0.00059178,120]
[321121386,1711900390354,-534.81,0.00059178,120]
[321121387,1711900390370,-670.0,0.00059178,120]
[321121388,1711900390384,-1379.27,0.00059178,120]
[321121389,1711900390398,-151.0,0.00059397,120]
[321121390,1711900390413,-999.52,0.00059415,2]
[321121391,1711900390429,-151.0,0.00059425,120]
[321121392,1711900390444,-1239.43,0.00059452,120]
[321121393,1711900390455,-664.59,0.00059452,2]
[321121394,1711900390470,-500.0,0.00059452,120]
[321121395,1711900390484,-527.64,0.00059452,120]
[321121396,1711900390497,-383.04,0.00059452,120]
[321121397,1711900390512,-500.0,0.00059452,120]
[321121398,1711900390523,-500.0,0.00059452,120]
[321121399,1711900390539,-397.56,0.00059452,120]
[321121400,1711900390553,-500.0,0.00059452,120]
[321121401,1711900390566,-500.0,0.00059452,120]
[321121402,1711900390579,-500.0,0.00059452,120]
[321121403,1711900390593,-500.0,0.00059452,120]
[321121404,1711900390607,-1476.31,0.00059452,120]
[321121405,1711900390623,-500.0,0.00059452,120]
[321121406,1711900390640,-500.0,0.00059452,120]
[321121407,1711900390653,-536.73,0.00059452,120]
[321121408,1711900390663,-794.23,0.00059452,120]
[321121409,1711900390676,-500.0,0.00059452,120]
[321121410,1711900390690,-500.0,0.00059452,120]
[321121411,1711900390705,-500.0,0.00059452,120]
[321121412,1711900390718,-726.96,0.00059452,120]
[321121413,1711900390729,-500.0,0.00059452,50]
[321121414,1711900390745,-500.0,0.00059452,120]
[321121415,1711900390757,-337.69118801,0.00059452,120]
[321121416,1711900390770,-753.06,0.00059452,120]
[321121417,1711900390783,-500.0,0.00059452,120]
[321121418,1711900390796,-741.95,0.00059452,120]
[321121419,1711900390810,-556.16,0.00059452,120]
[321121420,1711900390822,-500.0,0.00059452,120]
[321121421,1711900390835,-500.0,0.00059452,120]
[321121422,1711900390848,-500.0,0.00059452,120]
[321121423,1711900390862,-500.0,0.00059452,120]
[321121424,1711900390876,-796.42,0.00059452,120]
[321121425,1711900390889,-887.89,0.00059452,120]
[321121426,1711900390902,-556.88,0.00059452,120]
[321121427,1711900390915,-646.48,0.00059452,120]
[321121428,1711900390928,-500.0,0.00059452,120]
[321121429,1711900390941,-510.99,0.00059452,120]
[321121430,1711900390955,-849.94,0.00059452,120]
[321121431,1711900390967,-500.0,0.00059452,120]
[321121432,1711900390980,-557.8,0.00059452,120]
[321121433,1711900390993,-799.12,0.00059452,120]
[321121434,1711900391006,-500.0,0.00059452,120]
[321121435,1711900391019,-500.0,0.00059452,120]
[321121436,1711900391031,-500.0,0.00059452,120]
[321121437,1711900391045,-500.0,0.00059452,120]
[321121438,1711900391057,-500.0,0.00059452,120]
[321121439,1711900391071,-883.96,0.00059452,120]
[321121440,1711900391084,-815.7,0.00059452,120]
[321121441,1711900391097,-500.0,0.00059452,120]
[321121442,1711900391109,-804.07,0.00059452,120]
[321121443,1711900391122,-635.28,0.00059452,120]
[321121444,1711900391136,-959.19,0.00059452,120]
[321121445,1711900391149,-683.74,0.00059452,120]
[321121446,1711900391163,-1061.5,0.00059452,120]
[321121447,1711900391175,-736.85,0.00059452,120]
[321121448,1711900391190,-500.0,0.00059452,120]
[321121449,1711900391203,-500.0,0.00059452,120]
[321121450,1711900391217,-500.0,0.00059452,120]
[321121451,1711900391230,-500.0,0.00059452,120]
[321121452,1711900391244,-592.16,0.00059452,120]
[321121453,1711900391257,-500.0,0.00059452,120]
[321121454,1711900391270,-500.0,0.00059452,120]
[321121455,1711900391283,-571.87,0.00059452,120]
[321121456,1711900391298,-500.0,0.00059452,16]
[321121457,1711900391311,-781.99,0.00059452,120]
[321121458,1711900391324,-828.46,0.00059452,120]
[321121459,1711900391336,-500.0,0.00059452,120]
[321121460,1711900391349,-500.0,0.00059452,120]
[321121461,1711900391363,-500.0,0.00059452,120]
[321121462,1711900391377,-519.19,0.00059452,120]
[321121463,1711900391390,-680.37,0.00059452,120]
[321121464,1711900391402,-546.19215015,0.00059452,120]
[321121465,1711900391415,-735.71,0.00059452,120]
[321121466,1711900391429,-500.0,0.00059452,120]
[321121467,1711900391442,-648.33,0.00059452,120]
[321121468,1711900391455,-500.0,0.00059452,120]
[321121469,1711900391467,-680.7,0.00059452,120]
[321121470,1711900391480,-1067.63,0.00059452,120]
[321121471,1711900391492,-617.46,0.00059452,120]
[321121472,1711900391504,-500.0,0.00059452,120]
[321121473,1711900391517,-415.08,0.00059452,120]
[321121474,1711900391529,-615.17,0.00059452,120]
[321121475,1711900391541,-753.46,0.00059452,120]
[321121476,1711900391553,-671.0,0.00059452,120]
[321121477,1711900391565,-742.98,0.00059452,120]
[321121478,1711900391578,-579.39,0.00059452,120]
[321121479,1711900391590,-169.624388,0.00059452,120]
[321121480,1711900391603,-500.0,0.00059452,120]
[321121481,1711900391615,-759.51,0.00059452,120]
[321121482,1711900391628,-169.624388,0.00059452,120]
[321121483,1711900391641,-169.624388,0.00059452,120]
[321121484,1711900391653,-169.624388,0.00059452,120]
[321121485,1711900391665,-169.624388,0.00059452,120]
[321121486,1711900391677,-169.624392,0.00059452,120]
[321121487,1711900391690,-307.543145,0.00059452,120]
[321121488,1711900391702,-307.543145,0.00059452,120]
[321121489,1711900391714,-307.543145,0.00059452,120]
[321121490,1711900391727,-307.543145,0.00059452,120]
[321121491,1711900391739,-307.543145,0.00059452,120]
[321121492,1711900391751,-307.543145,0.00059452,120]
[321121493,1711900391764,-198.47926548,0.00059452,120]
[321121494,1711900391775,-730.83,0.00059452,30]
[321121495,1711900391787,-562.36,0.00059452,120]
[321121496,1711900391800,-151.0,0.00059452,120]
[321121497,1711900391812,-151.0,0.00059452,120]
[321121498,1711900391825,-151.0,0.00059452,120]
[321121499,1711900391837,-591.57,0.00059452,120]
[321121500,1711900391850,-754.29,0.00059452,120]
[321121501,1711900391862,-544.56,0.00059452,120]
[321121502,1711900391876,-500.0,0.00059452,120]
[321121503,1711900391888,-563.24,0.00059452,120]
[321121504,1711900391900,-632.48584989,0.00059452,120]
[321121505,1711900391912,-500.0,0.00059452,120]
[321121506,1711900391925,-662.41,0.00059452,120]
[321121507,1711900391938,-995.44,0.00059452,120]
[321121508,1711900391951,-291.77,0.00059452,120]
[321121509,1711900391963,-500.0,0.00059452,120]
[321121510,1711900391975,-500.0,0.00059452,120]
[321121511,1711900391988,-629.64,0.00059452,120]
[321121512,1711900392000,-500.0,0.00059452,120]
[321121513,1711900392013,-531.25,0.00059452,120]
[321121514,1711900392026,-543.59,0.00059452,120]
[321121515,1711900392038,-343.90633783,0.00059452,120]
[321121516,1711900392050,-761.88,0.00059452,120]
[321121517,1711900392063,-711.25,0.00059452,120]
[321121518,1711900392076,-646.54,0.00059452,120]
[321121519,1711900392089,-1048.22,0.00059452,120]
[321121520,1711900392101,-500.0,0.00059452,120]
[321121521,1711900392114,-844.59,0.00059452,120]
[321121522,1711900392127,-519.79,0.00059452,120]
[321121523,1711900392140,-729.88,0.00059452,120]
[321121524,1711900392152,-539.07,0.00059452,120]
[321121525,1711900392165,-915.41,0.00059452,120]
[321121526,1711900392177,-771.12,0.00059452,120]
[321121527,1711900392190,-500.0,0.00059452,120]
[321121528,1711900392202,-544.62,0.00059452,120]
[321121529,1711900392215,-618.81,0.00059452,120]
[321121530,1711900392227,-560.35,0.00059452,120]
[321121531,1711900392240,-500.0,0.00059452,120]
[321121532,1711900392253,-500.0,0.00059452,120]
[321121533,1711900392266,-860.0,0.00059452,120]
[321121534,1711900392279,-881.22,0.00059452,120]
[321121535,1711900392291,-500.0,0.00059452,120]
[321121536,1711900392306,-644.32,0.00059452,120]
[321121537,1711900392317,-500.0,0.00059452,120]
[321121538,1711900392328,-500.0,0.00059452,120]
[321121539,1711900392339,-500.0,0.00059452,120]
[321121540,1711900392350,-1276.69,0.00059452,120]
[321121541,1711900392362,-500.0,0.00059452,120]
[321121542,1711900392374,-259.83,0.00059452,120]
[321121543,1711900392385,-554.91,0.00059452,120]
[321121544,1711900392397,-545.06,0.00059452,120]
[321121545,1711900392409,-500.0,0.00059452,120]
[321121546,1711900392419,-688.34,0.00059452,120]
[321121547,1711900392430,-1281.67,0.00059452,120]
[321121548,1711900392441,-1988.35,0.00059452,120]
[321121549,1711900392452,-555.54,0.00059452,120]
[321121550,1711900392463,-4923.54,0.00059452,120]
[321121551,1711900392474,-500.0,0.00059452,120]
[321121552,1711900392486,-593.25,0.00059452,120]
[321121553,1711900392497,-205.41122507,0.00059452,120]
[321121554,1711900392508,-1037.57,0.00059452,120]
[321121555,1711900392519,-500.0,0.00059452,120]
[321121556,1711900392530,-1959.37,0.00059452,120]
[321121557,1711900392542,-449.80430212,0.00059452,120]
[321121558,1711900392553,-507.1,0.00059452,120]
[321121559,1711900392564,-17432.97,0.00059452,120]
[321121560,1711900392574,-973.96,0.00059452,120]
[321121561,1711900392586,-575.53,0.00059452,120]
[321121562,1711900392596,-836.36,0.00059452,120]
[321121563,1711900392609,-664.02,0.00059452,120]
[321121564,1711900392619,-4982.73,0.00059452,120]
[321121565,1711900392631,-1206.53,0.00059452,120]
[321121566,1711900392642,-561.13,0.00059452,120]
[321121567,1711900392653,-2111.34,0.00059452,120]
[321121568,1711900392665,-535.14,0.00059452,120]
[321121569,1711900392676,-35203.05,0.00059452,120]
[321121570,1711900392687,-500.0,0.00059452,120]
[321121571,1711900392698,-500.0,0.00059452,120]
[321121572,1711900392709,-20306.49,0.00059452,120]
[321121573,1711900392720,-2426.71,0.00059452,120]
[321121574,1711900392732,-3158.99,0.00059452,120]
[321121575,1711900392743,-500.0,0.00059452,120]
[321121576,1711900392755,-6583.66,0.00059452,120]
[321121577,1711900392766,-550.6,0.00059452,120]
[321121578,1711900392778,-4743.47,0.00059452,120]
[321121579,1711900392789,-649.91,0.00059452,120]
[321121580,1711900392800,-1008.94,0.00059452,120]
[321121581,1711900392812,-1501.81,0.00059452,120]
[321121582,1711900392823,-7272.15,0.00059452,120]
[321121583,1711900392835,-344.71,0.00059452,120]
[321121584,1711900392846,-500.0,0.00059452,120]
[321121585,1711900392858,-1951.74,0.00059452,120]
[321121586,1711900392869,-500.0,0.00059452,120]
[321121587,1711900392882,-1708.51,0.00059452,120]
[321121588,1711900392893,-2213.16,0.00059452,120]
[321121589,1711900392904,-516.3,0.00059452,120]
[321121590,1711900392916,-706.06,0.00059452,120]
[321121591,1711900392927,-500.0,0.00059452,120]
[321121592,1711900392939,-500.0,0.00059452,120]
[321121593,1711900392950,-500.0,0.00059452,120]
[321121594,1711900392962,-4238.83,0.00059452,120]
[321121595,1711900392974,-182.97,0.00059452,120]
[321121596,1711900392986,-1153.73,0.00059452,120]
[321121597,1711900392998,-1070.8,0.00059452,120]
[321121598,1711900393012,-506.91,0.00059452,120]
[321121599,1711900393025,-11263.13,0.00059452,120]
[321121600,1711900393036,-500.0,0.00059452,120]
[321121601,1711900393048,-6135.58,0.00059452,120]
[321121602,1711900393061,-1063.3,0.00059452,120]
[321121603,1711900393073,-1083.6,0.00059452,120]
[321121604,1711900393084,-1674.93,0.00059452,120]
[321121605,1711900393096,-500.0,0.00059452,120]
[321121606,1711900393108,-1968.84,0.00059452,120]
[321121607,1711900393120,-3729.06,0.00059452,120]
[321121608,1711900393132,-4646.47,0.00059452,120]
[321121609,1711900393142,-547.37,0.00059452,120]
[321121610,1711900393154,-2179.05,0.00059452,120]
[321121611,1711900393165,-16968.39,0.00059452,120]
[321121612,1711900393177,-29017.57,0.00059452,120]
[321121613,1711900393189,-551.57,0.00059452,120]
[321121614,1711900393201,-584.14,0.00059452,120]
[321121615,1711900393213,-890.16,0.00059452,120]
[321121616,1711900393225,-3354.8,0.00059452,120]
[321121617,1711900393236,-911.19,0.00059452,120]
[321121618,1711900393248,-770.28,0.00059452,120]
[321121619,1711900393259,-749.8,0.00059452,120]
[321121620,1711900393270,-1117.84,0.00059452,120]
[321121621,1711900393281,-1829.63,0.00059452,120]
[321121622,1711900393295,-500.0,0.00059452,120]
[321121623,1711900393306,-3744.87,0.00059452,120]
[321121624,1711900393319,-542.88,0.00059452,120]
[321121625,1711900393330,-500.0,0.00059452,120]
[321121626,1711900393342,-1553.34,0.00059452,120]
[321121627,1711900393355,-500.0,0.00059452,120]
[321121628,1711900393366,-1915.68,0.00059452,120]
[321121629,1711900393377,-584.91,0.00059452,120]
[321121630,1711900393388,-882.75,0.00059452,120]
[321121631,1711900393399,-1875.4,0.00059452,120]
[321121632,1711900393411,-733.42,0.00059452,120]
[321121633,1711900393422,-784.97,0.00059452,120]
[321121634,1711900393434,-2559.61,0.00059452,120]
[321121635,1711900393445,-500.0,0.00059452,120]
[321121636,1711900393457,-500.0,0.00059452,120]
[321121637,1711900393468,-4029.59,0.00059452,120]
[321121638,1711900393481,-1741.29,0.00059452,120]
[321121639,1711900393492,-500.0,0.00059452,120]
[321121640,1711900393504,-8811.85,0.00059452,120]
[321121641,1711900393515,-612.97,0.00059452,120]
[321121642,1711900393526,-2000.0,0.00059452,120]
[321121643,1711900393537,-7506.96,0.00059452,21]
[321121644,1711900393547,-2797.36,0.00059452,120]
[321121645,1711900393559,-1677.22,0.00059452,120]
[321121646,1711900393570,-1296.66,0.00059452,120]
[321121647,1711900393581,-966.37,0.00059452,120]
[321121648,1711900393592,-12461.24,0.00059452,120]
[321121649,1711900393603,-3203.08,0.00059452,120]
[321121650,1711900393614,-1043.52,0.00059452,120]
[321121651,1711900393626,-4560.05,0.00059452,120]
[321121652,1711900393637,-1828.48,0.00059452,120]
[321121653,1711900393649,-1209.33,0.00059452,120]
[321121654,1711900393661,-868.97,0.00059452,120]
[321121655,1711900393672,-596.22,0.00059452,120]
[321121656,1711900393684,-500.0,0.00059452,120]
[321121657,1711900393696,-609.97,0.00059452,120]
[321121658,1711900393707,-8356.87,0.00059452,120]
[321121659,1711900393719,-1782.7,0.00059452,120]
[321121660,1711900393730,-500.0,0.00059452,120]
[321121661,1711900393742,-525.13,0.00059452,120]
[321121662,1711900393755,-1415.86,0.00059452,120]
[321121663,1711900393766,-1616.02,0.00059452,120]
[321121664,1711900393778,-2311.2,0.00059452,120]
[321121665,1711900393789,-12648.79,0.00059452,120]
[321121666,1711900393801,-2232.12,0.00059452,120]
[321121667,1711900393812,-1508.33,0.00059452,120]
[321121668,1711900393824,-500.0,0.00059452,120]
[321121669,1711900393835,-500.0,0.00059452,120]
[321121670,1711900393846,-682.15,0.00059452,120]
[321121671,1711900393859,-2930.26,0.00059452,120]
[321121672,1711900393870,-3149.36,0.00059452,120]
[321121673,1711900393882,-696.26,0.00059452,120]
[321121674,1711900393893,-500.0,0.00059452,120]
[321121675,1711900393905,-1065.68,0.00059452,120]
[321121676,1711900393916,-515.16,0.00059452,120]
[321121677,1711900393929,-1509.76,0.00059452,120]
[321121678,1711900393942,-198.28,0.00059452,120]
[321121679,1711900393954,-4982.8,0.00059452,120]
[321121680,1711900393966,-717.55,0.00059452,120]
[321121681,1711900393978,-2406.23,0.00059452,120]
[321121682,1711900393989,-5346.73,0.00059452,120]
[321121683,1711900394000,-688.17,0.00059452,120]
[321121684,1711900394012,-551.95,0.00059452,120]
[321121685,1711900394024,-3295.3,0.00059452,120]
[321121686,1711900394037,-716.5,0.00059452,120]
[321121687,1711900394050,-752.11,0.00059452,120]
[321121688,1711900394063,-500.0,0.00059452,120]
[321121689,1711900394076,-1648.61,0.00059452,120]
[321121690,1711900394089,-694.07,0.00059452,120]
[321121691,1711900394102,-883.93,0.00059452,120]
[321121692,1711900394116,-615.79,0.00059452,120]
[321121693,1711900394129,-3973.68,0.00059452,120]
[321121694,1711900394142,-500.0,0.00059452,120]
[321121695,1711900394154,-1150.28,0.00059452,120]
[321121696,1711900394167,-2159.97,0.00059452,120]
[321121697,1711900394180,-1225.53,0.00059452,120]
[321121698,1711900394194,-1646.9,0.00059452,120]
[321121699,1711900394207,-994.44,0.00059452,120]
[321121700,1711900394220,-1115.67,0.00059452,120]
[321121701,1711900394232,-4641.87,0.00059452,120]
[321121702,1711900394245,-8787.96,0.00059452,120]
[321121703,1711900394258,-500.0,0.00059452,120]
[321121704,1711900394271,-1194.34,0.00059452,120]
[321121705,1711900394284,-257.65,0.00059452,120]
[321121706,1711900394301,-500.0,0.00059452,120]
[321121707,1711900394314,-752.64,0.00059452,120]
[321121708,1711900394327,-3930.82,0.00059452,120]
[321121709,1711900394340,-1715.44,0.00059452,120]
[321121710,1711900394353,-7337.25,0.00059452,120]
[321121711,1711900394367,-1001.76,0.00059452,120]
[321121712,1711900394382,-1183.78,0.00059452,120]
[321121713,1711900394395,-787.48,0.00059452,120]
[321121714,1711900394407,-939.48,0.00059452,120]
[321121715,1711900394420,-596.63,0.00059452,120]
[321121716,1711900394433,-602.91,0.00059452,120]
[321121717,1711900394447,-500.0,0.00059452,120]
[321121718,1711900394461,-2310.25,0.00059452,120]
[321121719,1711900394474,-1425.94,0.00059452,120]
[321121720,1711900394488,-1026.37,0.00059452,120]